fUSD/lending_fUSD_20241004
["ID","MTS","AMOUNT","RATE_DAILY","PERIOD"]
[339842468,1728053447092,-500.0,0.00038356,120]
[339842469,1728053447101,-500.0,0.00038356,120]
[339842470,1728053447110,-500.0,0.00038356,120]
[339842471,1728053447119,-826.34,0.00038356,120]
[339842472,1728053447128,-500.0,0.00038356,120]
[339842473,1728053447137,-500.0,0.00038356,120]
[339842474,1728053447147,-500.0,0.00038356,120]
[339842475,1728053447158,-500.0,0.00038356,120]
[339842476,1728053447172,-612.23,0.00038356,120]
[339842477,1728053447181,-500.0,0.00038356,120]
[339842478,1728053447190,-802.26,0.00038356,120]
[339842479,1728053447200,-500.0,0.00038356,120]
[339842480,1728053447210,-1030.72,0.00038356,120]
[339842481,1728053447220,-500.0,0.00038356,120]
[339842482,1728053447229,-500.0,0.00038356,120]
[339842483,1728053447239,-500.0,0.00038356,120]
[339842484,1728053447248,-500.0,0.00038356,120]
[339842485,1728053447257,-500.0,0.00038356,120]
[339842486,1728053447267,-500.0,0.00038356,120]
[339842487,1728053447276,-500.0,0.00038356,120]
[339842488,1728053447286,-500.0,0.00038356,120]
[339842489,1728053447295,-500.0,0.00038356,120]
[339842490,1728053447305,-543.14,0.00038356,120]
[339842491,1728053447315,-1459.72,0.00038356,120]
[339842492,1728053447327,-500.0,0.00038356,14]
[339842493,1728053447336,-500.0,0.00038356,24]
[339842494,1728053447346,-500.0,0.00038356,120]
[339842495,1728053447356,-1958.17,0.00038356,120]
[339842496,1728053447367,-689.52,0.00038356,120]
[339842497,1728053447376,-547.11,0.00038356,120]
[339842498,1728053447386,-500.0,0.00038356,120]
[339842499,1728053447395,-500.0,0.00038356,120]
[339842500,1728053447406,-545.96,0.00038356,120]
[339842501,1728053447416,-416.31216849,0.00038356,120]
[339842502,1728053447425,-500.0,0.00038356,120]
[339842503,1728053447435,-500.0,0.00038356,120]
[339842504,1728053447444,-251.89749619,0.00038356,120]
[339842505,1728053447453,-500.0,0.00038356,120]
[339842506,1728053447463,-637.65,0.00038356,120]
[339842507,1728053447472,-500.0,0.00038356,120]
[339842508,1728053447481,-500.0,0.00038356,120]
[339842509,1728053447490,-500.0,0.00038356,120]
[339842510,1728053447499,-500.0,0.00038356,120]
[339842511,1728053447508,-500.0,0.00038356,120]
[339842512,1728053447517,-500.0,0.00038356,120]
[339842513,1728053447526,-500.0,0.00038356,120]
[339842514,1728053447536,-609.23537232,0.00038356,120]
[339842515,1728053447545,-650.42,0.00038356,120]
[339842516,1728053447554,-500.0,0.00038356,120]
[339842517,1728053447563,-500.0,0.00038356,120]
[339842518,1728053447572,-500.0,0.00038356,120]
[339842519,1728053447580,-910.31,0.00038356,120]
[339842520,1728053447589,-975.03,0.00038356,120]
[339842521,1728053447599,-819.63,0.00038356,120]
[339842522,1728053447608,-590.57,0.00038356,120]
[339842523,1728053447617,-1847.77,0.00038356,120]
[339842524,1728053447626,-500.0,0.00038356,120]
[339842525,1728053447635,-500.0,0.00038356,120]
[339842526,1728053447645,-550.14887471,0.00038356,120]
[339842527,1728053447655,-2450.03,0.00038356,120]
[339842528,1728053447664,-536.45,0.00038356,120]
[339842529,1728053447674,-500.0,0.00038356,120]
[339842530,1728053447684,-507.26,0.00038356,120]
[339842531,1728053447693,-651.97,0.00038356,120]
[339842532,1728053447702,-500.0,0.00038356,120]
[339842533,1728053447710,-1799.48,0.00038356,120]
[339842534,1728053447719,-762.27,0.00038356,120]
[339842535,1728053447728,-500.0,0.00038356,120]
[339842536,1728053447738,-1000.66,0.00038356,120]
[339842537,1728053447747,-500.0,0.00038356,120]
[339842538,1728053447756,-500.0,0.00038356,120]
[339842539,1728053447765,-2098.12,0.00038356,120]
[339842540,1728053447774,-315.25852989,0.00038356,120]
[339842541,1728053447784,-4146.96,0.00038356,120]
[339842542,1728053447794,-500.0,0.00038356,120]
[339842543,1728053447804,-582.8,0.00038356,120]
[339842544,1728053447814,-620.54,0.00038356,120]
[339842545,1728053447824,-493.2300748,0.00038356,120]
[339842546,1728053447835,-500.0,0.00038356,120]
[339842547,1728053447845,-646.32562487,0.00038356,120]
[339842548,1728053447854,-1264.69,0.00038356,120]
[339842549,1728053447865,-500.0,0.00038356,120]
[339842550,1728053447874,-579.64,0.00038356,120]
[339842551,1728053447884,-482.30779664,0.00038356,120]
[339842552,1728053447893,-500.0,0.00038356,120]
[339842553,1728053447906,-593.48,0.00038356,120]
[339842554,1728053447915,-598.32400302,0.00038356,120]
[339842555,1728053447925,-784.98,0.00038356,120]
[339842556,1728053447935,-500.0,0.00038356,120]
[339842557,1728053447944,-592.2074955,0.00038356,120]
[339842558,1728053447953,-2129.42,0.00038356,120]
[339842559,1728053447962,-500.0,0.00038356,120]
[339842560,1728053447972,-500.0,0.00038356,120]
[339842561,1728053447981,-752.13,0.00038356,120]
[339842562,1728053447990,-500.0,0.00038356,120]
[339842563,1728053447999,-500.0,0.00038356,120]
[339842564,1728053448009,-1865.36,0.00038356,120]
[339842565,1728053448018,-1643.53,0.00038356,120]
[339842566,1728053448028,-500.0,0.00038356,120]
[339842567,1728053448037,-500.0,0.00038356,120]
[339842568,1728053448046,-581.92,0.00038356,120]
[339842569,1728053448055,-500.0,0.00038356,120]
[339842570,1728053448064,-1088.11,0.00038356,120]
[339842571,1728053448073,-719.83,0.00038356,120]
[339842572,1728053448083,-280.05983781,0.00038356,120]
[339842573,1728053448092,-500.0,0.00038356,120]
[339842574,1728053448101,-500.0,0.00038356,120]
[339842575,1728053448110,-500.0,0.00038356,120]
[339842576,1728053448119,-1820.66,0.00038356,120]
[339842577,1728053448127,-500.0,0.00038356,120]
[339842578,1728053448137,-500.0,0.00038356,120]
[339842579,1728053448146,-572.03,0.00038356,120]
[339842580,1728053448156,-621.42,0.00038356,120]
[339842581,1728053448166,-500.0,0.00038356,120]
[339842582,1728053448175,-500.0,0.00038356,120]
[339842583,1728053448185,-663.64,0.00038356,21]
[339842584,1728053448194,-2307.33,0.00038356,120]
[339842585,1728053448204,-500.0,0.00038356,120]
[339842586,1728053448213,-500.0,0.00038356,120]
[339842587,1728053448222,-500.0,0.00038356,120]
[339842588,1728053448231,-500.0,0.00038356,120]
[339842589,1728053448240,-500.0,0.00038356,120]
[339842590,1728053448249,-500.0,0.00038356,120]
[339842591,1728053448259,-500.0,0.00038356,120]
[339842592,1728053448268,-500.0,0.00038356,120]
[339842593,1728053448277,-836.91,0.00038356,120]
[339842594,1728053448286,-534.83,0.00038356,120]
[339842595,1728053448295,-4534.28,0.00038356,120]
[339842596,1728053448304,-500.0,0.00038356,120]
[339842597,1728053448313,-500.0,0.00038356,120]
[339842598,1728053448322,-787.13,0.00038356,120]
[339842599,1728053448331,-500.0,0.00038356,120]
[339842600,1728053448340,-3130.63,0.00038356,120]
[339842601,1728053448350,-500.0,0.00038356,120]
[339842602,1728053448359,-112.90538859,0.00038356,120]
[339842603,1728053448385,-387.09461141,0.00038356,120]
[339842604,1728053448394,-413.80076126,0.00038356,120]
[339842605,1728053448409,-86.19923874,0.00038356,120]
[339842606,1728053448418,-500.0,0.00038356,120]
[339842607,1728053448428,-1496.31,0.00038356,120]
[339842608,1728053448437,-500.0,0.00038356,120]
[339842609,1728053448446,-500.0,0.00038356,120]
[339842610,1728053448456,-1341.12,0.00038356,120]
[339842611,1728053448466,-514.49,0.00038356,120]
[339842612,1728053448474,-500.0,0.00038356,120]
[339842613,1728053448484,-211.84205316,0.00038356,120]
[339842614,1728053448496,-288.15794684,0.00038356,120]
[339842615,1728053448504,-500.0,0.00038356,120]
[339842616,1728053448514,-500.0,0.00038356,120]
[339842617,1728053448523,-500.0,0.00038356,120]
[339842618,1728053448532,-500.0,0.00038356,120]
[339842619,1728053448543,-500.0,0.00038356,120]
[339842620,1728053448552,-212.8568713,0.00038356,120]
[339842621,1728053448563,-338.4731287,0.00038356,120]
[339842622,1728053448573,-261.9118763,0.00038356,120]
[339842623,1728053448584,-346.5081237,0.00038356,120]
[339842624,1728053448594,-500.0,0.00038356,120]
[339842625,1728053448603,-450.94639531,0.00038356,120]
[339842626,1728053448612,-500.0,0.00038356,120]
[339842627,1728053448622,-500.0,0.00038356,120]
[339842628,1728053448631,-500.0,0.00038356,120]
[339842629,1728053448641,-125.81260228,0.00038356,120]
[339842630,1728053448863,-1879.48060795,0.00035455,15]
[339842631,1728053448874,-359.05,0.00036269,2]
[339842632,1728053448884,-1947.73739772,0.00038356,120]
[339842633,1728053448894,-500.0,0.00038356,120]
[339842634,1728053448904,-500.0,0.00038356,120]
[339842635,1728053448914,-500.0,0.00038356,120]
[339842636,1728053448923,-556.62,0.00038356,120]
[339842637,1728053448933,-500.0,0.00038356,120]
[339842638,1728053448942,-500.0,0.00038356,120]
[339842639,1728053448952,-706.94,0.00038356,120]
[339842640,1728053448962,-427.44292267,0.00038393,2]
[339842641,1728053448971,-1000.0,0.000385,45]
[339842642,1728053448982,-1000.0,0.000385,7]
[339842643,1728053448992,-427.44292267,0.0003853,2]
[339842644,1728053449002,-12396.663409,0.000386,6]
[339842645,1728053449012,-17294.72994999,0.0003861,6]
[339842646,1728053449024,-458.52,0.0003861,6]
[339842647,1728053449040,-1320.48470199,0.0003861,6]
[339842648,1728053449053,-2182.56714702,0.0003861,6]
[339842649,1728053449065,-2791.99151,0.0003861,6]
[339842650,1728053449077,-328.465,0.0003861,6]
[339842651,1728053626951,-151.37,0.00037359,120]
[339842652,1728053626975,-98.63,0.00037512,117]
[339842653,1728053627913,-3958.37,0.00037512,117]
[339842654,1728053628213,-250.0,0.00037767,120]
[339842655,1728053628236,-1953.58,0.00037778,120]
[339842656,1728053628782,-46.42,0.00037778,120]
[339842657,1728053628807,-4407.06,0.00038356,120]
[339842658,1728053628828,-745.55,0.00038356,120]
[339842659,1728053628849,-523.54,0.00038356,120]
[339842660,1728053628870,-500.0,0.00038356,120]
[339842661,1728053628893,-500.0,0.00038356,120]
[339842662,1728053628918,-500.0,0.00038356,120]
[339842663,1728053628940,-718.88,0.00038356,120]
[339842664,1728053628961,-500.0,0.00038356,120]
[339842665,1728053628983,-500.0,0.00038356,120]
[339842666,1728053629007,-516.08,0.00038356,120]
[339842667,1728053629029,-228.25004908,0.00038356,120]
[339842668,1728053629051,-500.0,0.00038356,120]
[339842669,1728053629073,-2793.47,0.00038356,120]
[339842670,1728053629095,-500.0,0.00038356,120]
[339842671,1728053629117,-500.0,0.00038356,120]
[339842672,1728053629140,-618.56,0.00038356,120]
[339842673,1728053629164,-500.0,0.00038356,120]
[339842674,1728053629187,-500.0,0.00038356,120]
[339842675,1728053629209,-500.0,0.00038356,120]
[339842676,1728053629232,-546.75191879,0.00038356,120]
[339842677,1728053629254,-890.45,0.00038356,120]
[339842678,1728053629279,-500.0,0.00038356,120]
[339842679,1728053629301,-500.0,0.00038356,120]
[339842680,1728053629325,-1152.38,0.00038356,120]
[339842681,1728053629346,-500.0,0.00038356,120]
[339842682,1728053629367,-500.0,0.00038356,120]
[339842683,1728053629392,-500.0,0.00038356,120]
[339842684,1728053629418,-500.0,0.00038356,120]
[339842685,1728053629480,-510.85,0.00038356,120]
[339842686,1728053629503,-500.0,0.00038356,120]
[339842687,1728053629525,-887.8,0.00038356,120]
[339842688,1728053629547,-500.0,0.00038356,120]
[339842689,1728053629569,-500.0,0.00038356,120]
[339842690,1728053629591,-500.0,0.00038356,120]
[339842691,1728053629613,-500.0,0.00038356,120]
[339842692,1728053629640,-500.0,0.00038356,120]
[339842693,1728053629666,-725.16,0.00038356,120]
[339842694,1728053629687,-914.61,0.00038356,120]
[339842695,1728053629708,-500.0,0.00038356,120]
[339842696,1728053629730,-698.5,0.00038356,120]
[339842697,1728053629752,-877.47,0.00038356,120]
[339842698,1728053629773,-500.0,0.00038356,120]
[339842699,1728053629795,-500.0,0.00038356,120]
[339842700,1728053629818,-500.0,0.00038356,120]
[339842701,1728053629840,-2823.22,0.00038356,120]
[339842702,1728053629862,-586.72,0.00038356,120]
[339842703,1728053629886,-500.0,0.00038356,120]
[339842704,1728053629909,-500.0,0.00038356,120]
[339842705,1728053629931,-500.0,0.00038356,120]
[339842706,1728053629952,-500.0,0.00038356,120]
[339842707,1728053629973,-1398.9,0.00038356,120]
[339842708,1728053629994,-500.0,0.00038356,120]
[339842709,1728053630016,-500.0,0.00038356,120]
[339842710,1728053630037,-500.0,0.00038356,120]
[339842711,1728053630059,-780.63,0.00038356,120]
[339842712,1728053630081,-691.95,0.00038356,120]
[339842713,1728053630102,-625.77,0.00038356,120]
[339842714,1728053630123,-500.0,0.00038356,120]
[339842715,1728053630147,-500.0,0.00038356,120]
[339842716,1728053630169,-500.0,0.00038356,120]
[339842717,1728053630192,-500.0,0.00038356,120]
[339842718,1728053630215,-500.0,0.00038356,120]
[339842719,1728053630236,-500.0,0.00038356,120]
[339842720,1728053630258,-500.0,0.00038356,120]
[339842721,1728053630280,-471.73593776,0.00038356,120]
[339842722,1728053630302,-872.38,0.00038356,120]
[339842723,1728053630324,-500.0,0.00038356,120]
[339842724,1728053630347,-768.84,0.00038356,120]
[339842725,1728053630368,-500.0,0.00038356,120]
[339842726,1728053630392,-1442.24,0.00038356,120]
[339842727,1728053630414,-500.0,0.00038356,120]
[339842728,1728053630434,-500.0,0.00038356,120]
[339842729,1728053630455,-500.0,0.00038356,120]
[339842730,1728053630476,-520.51,0.00038356,120]
[339842731,1728053630498,-500.0,0.00038356,120]
[339842732,1728053630520,-500.0,0.00038356,120]
[339842733,1728053630541,-537.26,0.00038356,120]
[339842734,1728053630563,-2347.95,0.00038356,120]
[339842735,1728053630584,-415.78965902,0.00038356,120]
[339842736,1728053630605,-500.0,0.00038356,120]
[339842737,1728053630626,-500.0,0.00038356,120]
[339842738,1728053630649,-500.0,0.00038356,120]
[339842739,1728053630671,-785.48,0.00038356,120]
[339842740,1728053630693,-632.08,0.00038356,120]
[339842741,1728053630713,-500.0,0.00038356,120]
[339842742,1728053630735,-500.0,0.00038356,120]
[339842743,1728053630756,-539.0375061,0.00038356,120]
[339842744,1728053630776,-500.0,0.00038356,120]
[339842745,1728053630797,-500.0,0.00038356,120]
[339842746,1728053630818,-500.0,0.00038356,120]
[339842747,1728053630839,-500.0,0.00038356,120]
[339842748,1728053630860,-500.0,0.00038356,120]
[339842749,1728053630882,-1770.78,0.00038356,120]
[339842750,1728053630908,-500.0,0.00038356,120]
[339842751,1728053630931,-624.81,0.00038356,120]
[339842752,1728053630953,-500.0,0.00038356,120]
[339842753,1728053630973,-500.0,0.00038356,120]
[339842754,1728053630995,-500.0,0.00038356,120]
[339842755,1728053631018,-500.0,0.00038356,120]
[339842756,1728053631040,-500.0,0.00038356,120]
[339842757,1728053631061,-524.31,0.00038356,120]
[339842758,1728053631083,-500.0,0.00038356,120]
[339842759,1728053631105,-500.0,0.00038356,120]
[339842760,1728053631125,-510.69,0.00038356,120]
[339842761,1728053631148,-500.0,0.00038356,120]
[339842762,1728053631171,-3974.17,0.00038356,120]
[339842763,1728053631192,-500.0,0.00038356,120]
[339842764,1728053631214,-500.0,0.00038356,120]
[339842765,1728053631236,-500.0,0.00038356,120]
[339842766,1728053631258,-958.97,0.00038356,120]
[339842767,1728053631280,-150.0,0.00038356,120]
[339842768,1728053631301,-500.0,0.00038356,120]
[339842769,1728053631322,-500.0,0.00038356,120]
[339842770,1728053631343,-500.0,0.00038356,120]
[339842771,1728053631363,-500.0,0.00038356,120]
[339842772,1728053631387,-500.0,0.00038356,120]
[339842773,1728053631408,-500.0,0.00038356,120]
[339842774,1728053631430,-558.52,0.00038356,120]
[339842775,1728053631452,-500.0,0.00038356,120]
[339842776,1728053631473,-512.14,0.00038356,120]
[339842777,1728053631495,-500.0,0.00038356,120]
[339842778,1728053631516,-500.0,0.00038356,120]
[339842779,1728053631538,-500.0,0.00038356,120]
[339842780,1728053631559,-500.0,0.00038356,120]
[339842781,1728053631580,-500.0,0.00038356,120]
[339842782,1728053631601,-752.27,0.00038356,120]
[339842783,1728053631622,-500.0,0.00038356,120]
[339842784,1728053631644,-565.96,0.00038356,120]
[339842785,1728053631665,-500.0,0.00038356,120]
[339842786,1728053631686,-500.0,0.00038356,120]
[339842787,1728053631707,-448.48868089,0.00038356,120]
[339842788,1728053631728,-500.0,0.00038356,120]
[339842789,1728053631749,-500.0,0.00038356,120]
[339842790,1728053631771,-500.0,0.00038356,120]
[339842791,1728053631794,-500.0,0.00038356,120]
[339842792,1728053631818,-730.51,0.00038356,120]
[339842793,1728053631839,-500.0,0.00038356,120]
[339842794,1728053631860,-500.0,0.00038356,120]
[339842795,1728053631881,-500.0,0.00038356,120]
[339842796,1728053631902,-500.0,0.00038356,120]
[339842797,1728053631927,-1042.77,0.00038356,120]
[339842798,1728053631948,-1787.64,0.00038356,120]
[339842799,1728053631968,-2790.27,0.00038356,120]
[339842800,1728053631989,-500.0,0.00038356,120]
[339842801,1728053632011,-500.0,0.00038356,120]
[339842802,1728053632032,-500.0,0.00038356,120]
[339842803,1728053632054,-500.0,0.00038356,120]
[339842804,1728053632192,-500.0,0.00038356,120]
[339842805,1728053632214,-500.0,0.00038356,120]
[339842806,1728053632236,-500.0,0.00038356,120]
[339842807,1728053632258,-660.79,0.00038356,120]
[339842808,1728053632280,-500.0,0.00038356,120]
[339842809,1728053632302,-1042.71,0.00038356,120]
[339842810,1728053632323,-493.05534762,0.00038356,120]
[339842811,1728053632345,-500.0,0.00038356,120]
[339842812,1728053632366,-963.36,0.00038356,120]
[339842813,1728053632389,-500.0,0.00038356,120]
[339842814,1728053632411,-240.62227096,0.00038356,120]
[339842815,1728053632433,-500.0,0.00038356,120]
[339842816,1728053632455,-500.0,0.00038356,120]
[339842817,1728053632476,-595.53,0.00038356,120]
[339842818,1728053632498,-500.0,0.00038356,120]
[339842819,1728053632521,-466.13,0.00038356,120]
[339842820,1728053632559,-46.42,0.00038356,120]
[339842821,1728053632582,-568.76,0.00038356,120]
[339842822,1728053632607,-611.08,0.0003862,120]
[339842823,1728053632632,-500.0,0.0003862,120]
[339842824,1728053632655,-447.04882612,0.0003862,120]
[339842825,1728053632677,-500.0,0.0003862,120]
[339842826,1728053632700,-500.0,0.0003862,120]
[339842827,1728053632723,-1724.51,0.0003862,120]
[339842828,1728053632746,-2010.7,0.0003862,120]
[339842829,1728053632769,-500.0,0.0003862,120]
[339842830,1728053632792,-1211.99,0.0003862,120]
[339842831,1728053632815,-720.79,0.0003862,120]
[339842832,1728053632839,-2040.7,0.0003862,120]
[339842833,1728053632862,-689.84,0.0003862,120]
[339842834,1728053632886,-277.19929211,0.0003863,120]
[339842835,1728053632915,-608.16,0.0003863,120]
[339842836,1728053632939,-571.2,0.0003863,120]
[339842837,1728053632962,-500.0,0.0003863,120]
[339842838,1728053632984,-585.2,0.0003863,120]
[339842839,1728053633010,-500.0,0.0003863,120]
[339842840,1728053633032,-500.0,0.0003863,120]
[339842841,1728053633055,-500.0,0.0003863,120]
[339842842,1728053633079,-500.0,0.0003863,120]
[339842843,1728053633102,-500.0,0.0003863,120]
[339842844,1728053633126,-500.0,0.0003863,120]
[339842845,1728053633159,-500.0,0.0003863,120]
[339842846,1728053633182,-500.0,0.0003863,120]
[339842847,1728053633205,-500.0,0.0003863,120]
[339842848,1728053633228,-500.0,0.0003863,120]
[339842849,1728053633251,-500.0,0.0003863,120]
[339842850,1728053633274,-500.0,0.0003863,120]
[339842851,1728053633297,-500.0,0.0003863,120]
[339842852,1728053633319,-500.0,0.0003863,120]
[339842853,1728053633342,-500.0,0.0003863,120]
[339842854,1728053633364,-500.0,0.0003863,120]
[339842855,1728053633397,-500.0,0.0003863,120]
[339842856,1728053633419,-500.0,0.0003863,120]
[339842857,1728053633441,-500.0,0.0003863,120]
[339842858,1728053633463,-500.0,0.0003863,120]
[339842859,1728053633494,-500.0,0.0003863,120]
[339842860,1728053633518,-500.0,0.0003863,120]
[339842861,1728053633541,-500.0,0.0003863,120]
[339842862,1728053633566,-475.67900372,0.0003863,120]
[339842863,1728053633589,-500.0,0.0003863,120]
[339842864,1728053633613,-500.0,0.0003863,120]
[339842865,1728053633638,-500.0,0.0003863,120]
[339842866,1728053633661,-500.0,0.0003863,120]
[339842867,1728053633685,-500.0,0.0003863,120]
[339842868,1728053633708,-500.0,0.0003863,120]
[339842869,1728053633731,-500.0,0.0003863,120]
[339842870,1728053633756,-464.95213073,0.0003863,120]
[339842871,1728053633779,-500.0,0.0003863,120]
[339842872,1728053633803,-500.0,0.0003863,120]
[339842873,1728053633828,-500.0,0.0003863,120]
[339842874,1728053633851,-500.0,0.0003863,120]
[339842875,1728053633875,-500.0,0.0003863,120]
[339842876,1728053633904,-500.0,0.0003863,120]
[339842877,1728053633932,-500.0,0.0003863,120]
[339842878,1728053633955,-500.0,0.0003863,120]
[339842879,1728053633979,-445.19897696,0.0003863,120]
[339842880,1728053634004,-500.0,0.0003863,120]
[339842881,1728053634029,-500.0,0.0003863,120]
[339842882,1728053634053,-500.0,0.0003863,120]
[339842883,1728053634077,-500.0,0.0003863,120]
[339842884,1728053634100,-500.0,0.0003863,120]
[339842885,1728053634125,-500.0,0.0003863,120]
[339842886,1728053634149,-529.98,0.0003863,120]
[339842887,1728053634173,-500.0,0.0003863,120]
[339842888,1728053634198,-500.0,0.0003863,120]
[339842889,1728053634221,-500.0,0.0003863,120]
[339842890,1728053634244,-283.51823826,0.0003863,120]
[339842891,1728053634268,-500.0,0.0003863,120]
[339842892,1728053634292,-500.0,0.0003863,120]
[339842893,1728053634315,-500.0,0.0003863,120]
[339842894,1728053634338,-500.0,0.0003863,120]
[339842895,1728053634361,-500.0,0.0003863,120]
[339842896,1728053634603,-899.58,0.0003863,120]
[339842897,1728053634628,-160.33849944,0.0003863,120]
[339842898,1728053634653,-500.0,0.0003863,120]
[339842899,1728053634677,-500.0,0.0003863,120]
[339842900,1728053634701,-500.0,0.0003863,120]
[339842901,1728053634725,-500.0,0.0003863,120]
[339842902,1728053634750,-500.0,0.0003863,120]
[339842903,1728053634773,-500.0,0.0003863,120]
[339842904,1728053634797,-599.69,0.0003863,120]
[339842905,1728053634820,-500.0,0.0003863,120]
[339842906,1728053634844,-500.0,0.0003863,120]
[339842907,1728053634867,-500.0,0.0003863,120]
[339842908,1728053634891,-500.0,0.0003863,120]
[339842909,1728053634917,-500.0,0.0003863,120]
[339842910,1728053634943,-502.11,0.0003863,120]
[339842911,1728053634967,-606.71,0.0003863,120]
[339842912,1728053634992,-500.0,0.0003863,120]
[339842913,1728053635016,-500.0,0.0003863,120]
[339842914,1728053635040,-500.0,0.0003863,120]
[339842915,1728053635062,-500.0,0.0003863,120]
[339842916,1728053635086,-500.0,0.0003863,120]
[339842917,1728053635109,-500.0,0.0003863,120]
[339842918,1728053635132,-537.08,0.0003863,120]
[339842919,1728053635156,-500.0,0.0003863,120]
[339842920,1728053635184,-500.0,0.0003863,120]
[339842921,1728053635208,-544.76889516,0.0003863,120]
[339842922,1728053635231,-500.0,0.0003863,120]
[339842923,1728053635254,-500.0,0.0003863,120]
[339842924,1728053635277,-500.0,0.0003863,120]
[339842925,1728053635301,-500.0,0.0003863,120]
[339842926,1728053635323,-500.0,0.0003863,120]
[339842927,1728053635347,-500.0,0.0003863,120]
[339842928,1728053635370,-500.0,0.0003863,120]
[339842929,1728053635394,-500.0,0.0003863,120]
[339842930,1728053635418,-500.0,0.0003863,120]
[339842931,1728053635441,-500.0,0.0003863,120]
[339842932,1728053635464,-500.0,0.0003863,120]
[339842933,1728053635489,-500.0,0.0003863,120]
[339842934,1728053635512,-500.0,0.0003863,120]
[339842935,1728053635535,-273.81688851,0.0003863,120]
[339842936,1728053635557,-500.0,0.0003863,120]
[339842937,1728053635579,-500.0,0.0003863,120]
[339842938,1728053635602,-500.0,0.0003863,120]
[339842939,1728053635624,-500.0,0.0003863,120]
[339842940,1728053635649,-522.28,0.0003863,120]
[339842941,1728053635673,-500.0,0.0003863,120]
[339842942,1728053635695,-531.57488624,0.0003863,120]
[339842943,1728053635719,-500.0,0.0003863,120]
[339842944,1728053635740,-500.0,0.0003863,120]
[339842945,1728053635762,-650.26,0.0003863,120]
[339842946,1728053635785,-500.0,0.0003863,120]
[339842947,1728053635808,-500.0,0.0003863,120]
[339842948,1728053635831,-500.0,0.0003863,120]
[339842949,1728053635853,-727.06,0.0003863,120]
[339842950,1728053635875,-500.0,0.0003863,120]
[339842951,1728053635899,-500.0,0.0003863,120]
[339842952,1728053635925,-500.0,0.0003863,120]
[339842953,1728053635947,-500.0,0.0003863,120]
[339842954,1728053635969,-500.0,0.0003863,120]
[339842955,1728053635992,-500.0,0.0003863,120]
[339842956,1728053636015,-500.0,0.0003863,120]
[339842957,1728053636037,-500.0,0.0003863,120]
[339842958,1728053636060,-500.0,0.0003863,120]
[339842959,1728053636083,-500.0,0.0003863,120]
[339842960,1728053636108,-866.32,0.0003863,120]
[339842961,1728053636130,-500.0,0.0003863,120]
[339842962,1728053636154,-500.0,0.0003863,120]
[339842963,1728053636176,-500.0,0.0003863,120]
[339842964,1728053636199,-500.0,0.0003863,120]
[339842965,1728053636221,-500.0,0.0003863,120]
[339842966,1728053636245,-500.0,0.0003863,120]
[339842967,1728053636267,-501.77591668,0.0003863,120]